bitfinex/quotes_SOLUSD_20240818
["timestamp","ask_amount","ask_price","bid_price","bid_amount"]
[1723981492792,0.37647,144.17,144.09,20.0]
[1723981493692,6.0618,144.18,144.1,45.0]
[1723981493993,6.0618,144.18,144.11,20.0]
[1723981499174,6.0618,144.18,144.12,45.0]
[1723981501393,6.0618,144.18,144.13,1.38649218]
[1723981501581,6.0618,144.18,144.12,45.0]
[1723981502584,6.0618,144.18,144.11,20.0]
[1723981502906,6.0618,144.18,144.1,0.37647]
[1723981507218,6.0618,144.18,144.1,1.76361986]
[1723981508005,6.0618,144.18,144.1,0.37647]
[1723981512495,6.0618,144.18,144.11,0.25098]
[1723981512801,6.0618,144.18,144.11,1.63805552]
[1723981513722,6.0618,144.18,144.13,0.12549]
[1723981513921,14.8173,144.32,144.13,1.63797121]
[1723981514093,14.8173,144.3,144.15,0.12549]
[1723981514425,14.8173,144.3,144.15,1.63757325]
[1723981514587,21.7469,144.31,144.17,0.12549]
[1723981514794,21.7469,144.31,144.17,1.6373598]
[1723981515285,21.7469,144.31,144.18,0.12549]
[1723981515501,21.7469,144.31,144.18,0.25098]
[1723981516498,0.25098,144.3,144.18,0.25098]
[1723981516704,14.8173,144.29,144.13,1.38640627]
[1723981516895,0.12549,144.26,144.15,0.12549]
[1723981517095,0.25098,144.26,144.15,0.12549]
[1723981517294,0.25098,144.26,144.15,1.38668078]
[1723981517594,0.12549,144.25,144.15,1.38668078]
[1723981517790,0.25098,144.25,144.15,1.38668078]
[1723981519323,21.1578,144.27,144.16,0.12549]
[1723981519495,21.1578,144.27,144.16,1.88837439]
[1723981519833,21.1578,144.27,144.17,0.12549]
[1723981520032,21.1578,144.27,144.18,0.12549]
[1723981520503,14.8173,144.31,144.18,86.12098]
[1723981520822,14.8173,144.31,144.2,0.12549]
[1723981521016,14.8173,144.31,144.2,0.25098]
[1723981521327,14.8173,144.31,144.21,0.25098]
[1723981522408,14.8173,144.31,144.21,0.80635171]
[1723981523130,14.8173,144.31,144.21,0.25098]
[1723981528522,14.8173,144.31,144.21,1.63676186]
[1723981533211,0.37647,144.3,144.2,65.25098]
[1723981533411,0.12549,144.3,144.2,65.25098]
[1723981533733,22.04820184,144.31,144.21,0.12549]
[1723981534034,22.04820184,144.31,144.21,0.25098]
[1723981537136,14.8173,144.31,144.21,0.25098]
[1723981538441,14.8173,144.31,144.22,16.00298]
[1723981538738,13.57179734,144.33,144.23,66.63687231]
[1723981538920,13.57179734,144.33,144.24,1.38579622]
[1723981539110,13.57179734,144.33,144.25,0.37647]
[1723981539308,13.57179734,144.33,144.25,1.51119287]
[1723981539524,13.57179734,144.33,144.26,0.12549]
[1723981539715,13.57179734,144.33,144.25,0.25098]
[1723981539925,13.57179734,144.33,144.26,0.12549]
[1723981540437,13.57179734,144.33,144.25,0.37647]
[1723981541713,7.23129734,144.33,144.25,1.7618844]
[1723981542238,7.23129734,144.33,144.25,0.37647]
[1723981546639,6.598,144.36,144.25,0.37647]
[1723981546819,0.12549,144.35,144.23,20.0]
[1723981547015,45.50196,144.35,144.23,20.0]
[1723981547215,52.42966,144.35,144.23,20.0]
[1723981547539,0.12549,144.33,144.23,20.0]
[1723981547723,0.37647,144.33,144.23,20.0]
[1723981548229,0.37647,144.33,144.24,45.0]
[1723981548436,0.37647,144.33,144.25,20.0]
[1723981548640,14.8173,144.34,144.25,20.0]
[1723981553248,0.37647,144.33,144.25,20.0]
[1723981553431,0.37647,144.33,144.23,20.0]
[1723981555051,0.12549,144.31,144.19,24.587771]
[1723981555227,0.37647,144.31,144.19,21.8099]
[1723981556356,0.37647,144.31,144.2,65.25098]
[1723981556532,0.37647,144.31,144.2,65.37647]
[1723981556728,0.37647,144.31,144.2,66.76267315]
[1723981557148,7.60386621,144.31,144.2,66.76267315]
[1723981557448,7.60386621,144.31,144.21,1.5116934]
[1723981557449,7.22739621,144.31,144.21,1.5116934]
[1723981557625,7.22739621,144.31,144.22,0.37647]
[1723981558037,7.22739621,144.31,144.22,0.25098]
[1723981566644,6.119,144.32,144.22,0.25098]
[1723981568539,6.119,144.32,144.23,0.12549]
[1723981568848,6.119,144.32,144.23,1.63687113]
[1723981570560,6.119,144.32,144.24,0.25098]
[1723981570859,6.119,144.32,144.25,0.12549]
[1723981571362,6.119,144.32,144.25,0.25098]
[1723981572759,14.8173,144.34,144.27,0.12549]
[1723981573078,14.8173,144.34,144.27,1.63656431]
[1723981573539,14.8173,144.34,144.27,21.63656431]
[1723981573738,14.8173,144.34,144.28,45.0]
[1723981574352,14.8173,144.34,144.29,20.0]
[1723981574575,6.6621,144.35,144.3,45.0]
[1723981575549,6.6621,144.35,144.29,20.0]
[1723981575755,6.6621,144.35,144.27,0.25098]
[1723981576069,6.6621,144.35,144.27,0.12549]
[1723981576257,6.6621,144.35,144.27,20.12549]
[1723981577273,6.6621,144.35,144.28,45.0]
[1723981577444,6.6621,144.35,144.29,20.0]
[1723981579347,6.6621,144.35,144.3,45.0]
[1723981581170,14.8173,144.38,144.31,20.0]
[1723981581374,14.8173,144.38,144.32,45.0]
[1723981582758,6.1293,144.39,144.32,45.0]
[1723981588062,6.1293,144.39,144.32,46.38332992]
[1723981589078,6.1293,144.39,144.32,45.0]
[1723981590382,6.1293,144.39,144.32,46.38346311]
[1723981590576,6.1293,144.39,144.32,45.0]
[1723981591578,6.1293,144.39,144.33,20.0]
[1723981592480,22.04175937,144.42,144.34,1.38517835]
[1723981592692,22.04175937,144.42,144.34,45.0]
[1723981592855,22.04175937,144.42,144.35,1.38499309]
[1723981593054,22.04175937,144.42,144.35,21.38499309]
[1723981593253,22.04175937,144.42,144.36,1.38489716]
[1723981593459,14.8173,144.42,144.36,46.38489716]
[1723981593660,6.5622,144.43,144.36,46.38489716]
[1723981594891,6.5622,144.43,144.36,45.0]
[1723981598379,22.04422368,144.45,144.36,45.0]
[1723981598598,0.12549,144.44,144.36,45.0]
[1723981599196,0.25098,144.44,144.35,20.0]
[1723981599391,0.37647,144.44,144.35,20.0]
[1723981600095,0.12549,144.44,144.36,45.0]
[1723981600293,22.04422368,144.45,144.36,45.0]
[1723981603174,0.12549,144.44,144.36,45.0]
[1723981604695,0.12549,144.44,144.35,20.0]
[1723981604999,0.37647,144.44,144.35,20.0]
[1723981606279,7.22282653,144.43,144.35,20.0]
[1723981607592,0.37647,144.42,144.35,20.0]
[1723981616821,7.22282653,144.43,144.35,20.0]
[1723981626109,7.22282653,144.43,144.36,1.38510608]
[1723981626292,7.22282653,144.43,144.35,20.0]
[1723981630902,0.25098,144.42,144.35,20.0]
[1723981631137,6.0926,144.41,144.35,20.0]
[1723981636120,6.0926,144.41,144.31,20.0]
[1723981637027,6.0926,144.41,144.31,29.0973356]
[1723981637815,6.0926,144.41,144.32,45.0]
[1723981638129,6.0926,144.41,144.33,20.0]
[1723981641324,6.0926,144.41,144.33,21.38517227]
[1723981641519,6.0926,144.41,144.34,45.0]
[1723981641819,6.0926,144.41,144.35,20.0]
[1723981642217,6.0926,144.41,144.33,20.0]
[1723981642427,6.0926,144.41,144.34,45.0]
[1723981642730,6.0926,144.41,144.35,20.0]
[1723981643029,6.0926,144.41,144.36,1.3846941]
[1723981643235,6.0926,144.41,144.35,20.0]
[1723981644109,14.8173,144.45,144.36,45.0]
[1723981644308,14.8173,144.45,144.37,20.0]
[1723981645316,0.12549,144.44,144.37,20.0]
[1723981645611,0.37647,144.44,144.37,20.0]
[1723981645838,0.37647,144.44,144.36,20.0]
[1723981650521,0.12549,144.42,144.31,25.0433356]
[1723981650723,0.12549,144.42,144.22,61.344347]
[1723981650724,0.12549,144.37,144.24,8.17096433]
[1723981651043,0.25098,144.37,144.24,15.1899356]
[1723981651239,0.25098,144.36,144.25,9.0973356]
[1723981652337,0.12549,144.37,144.26,0.12549]
[1723981652741,0.37647,144.37,144.26,0.12549]
[1723981653424,0.37647,144.37,144.27,0.12549]
[1723981653608,0.37647,144.37,144.27,45.25098]
[1723981654017,14.8173,144.38,144.27,54.3483156]
[1723981654243,14.8173,144.38,144.29,0.12549]
[1723981654546,14.8173,144.38,144.29,54.4738056]
[1723981654855,14.8173,144.38,144.3,20.12549]
[1723981655039,6.0926,144.39,144.31,45.37647]
[1723981655338,6.0926,144.39,144.33,0.12549]
[1723981655508,6.0926,144.39,144.33,45.37647]
[1723981655708,6.0926,144.39,144.33,45.0]
[1723981660223,6.0926,144.39,144.34,20.25098]
[1723981660422,6.0926,144.39,144.35,45.0]
[1723981661648,6.0121,144.42,144.35,45.0]
[1723981667156,6.0121,144.42,144.36,0.12549]
[1723981667467,6.0121,144.42,144.36,0.50196]
[1723981668271,14.8173,144.43,144.36,20.50196]
[1723981668485,14.8173,144.43,144.37,45.0]
[1723981671042,14.8173,144.43,144.36,20.0]
[1723981671256,14.8173,144.43,144.34,20.12549]
[1723981671463,14.8173,144.43,144.35,45.37647]
[1723981671666,14.8173,144.43,144.36,20.0]
[1723981672871,14.8173,144.43,144.37,45.0]
[1723981673050,14.8173,144.43,144.38,20.0]
[1723981686181,6.0121,144.46,144.38,20.0]
[1723981686474,6.0121,144.46,144.39,45.0]
[1723981688670,6.0121,144.46,144.38,20.0]
[1723981688850,6.0121,144.46,144.37,0.12549]
[1723981688851,6.0121,144.46,144.35,0.12549]
[1723981689048,6.0121,144.46,144.36,0.12549]
[1723981689251,6.0121,144.46,144.36,20.37647]
[1723981689554,6.0121,144.46,144.37,45.12549]
[1723981689778,6.0121,144.46,144.38,20.12549]
[1723981690087,6.0121,144.46,144.39,45.0]
[1723981700495,6.0121,144.46,144.38,20.12549]
[1723981700496,6.0121,144.46,144.38,20.0]
[1723981700791,6.0121,144.46,144.39,20.0]
[1723981700991,6.0121,144.46,144.34,20.0]
[1723981701666,6.0121,144.46,144.35,0.12549]
[1723981701861,6.0121,144.46,144.35,45.50196]
[1723981702091,6.0121,144.46,144.36,20.0]
[1723981702285,6.0121,144.46,144.37,45.0]
[1723981702486,6.0121,144.46,144.38,20.0]
[1723981703797,6.0121,144.46,144.39,45.0]
[1723981705098,6.0121,144.46,144.4,0.12549]
[1723981705268,6.0121,144.46,144.4,20.50196]
[1723981705468,6.0121,144.46,144.41,45.0]
[1723981706908,6.0121,144.46,144.4,20.0]
[1723981707200,6.0121,144.46,144.34,20.0]
[1723981707373,6.0121,144.46,144.35,0.12549]
[1723981708496,6.0121,144.46,144.35,45.50196]
[1723981708700,6.0121,144.46,144.37,0.12549]
[1723981708865,6.0121,144.46,144.37,45.50196]
[1723981709072,6.0121,144.46,144.38,20.0]
[1723981709298,6.0121,144.46,144.39,45.0]
[1723981709478,6.0121,144.46,144.4,20.0]
[1723981710794,6.0121,144.46,144.41,45.25098]
[1723981714584,6.0121,144.46,144.41,45.0]
[1723981715295,6.0121,144.46,144.4,20.0]
[1723981715498,6.0121,144.46,144.39,20.25098]
[1723981715706,6.0121,144.46,144.39,20.0]
[1723981716008,6.0121,144.46,144.38,0.12549]
[1723981716386,6.0121,144.46,144.38,20.12549]
[1723981716604,6.0121,144.46,144.38,0.12549]
[1723981716899,6.0121,144.46,144.39,20.0]
[1723981717194,6.0121,144.46,144.36,20.0]
[1723981717368,6.0121,144.46,144.36,29.0973356]
[1723981717571,6.0121,144.46,144.37,9.2228256]
[1723981717773,6.0121,144.46,144.38,65.0]
[1723981718599,6.0121,144.46,144.38,74.0973356]
[1723981719103,6.0121,144.46,144.39,0.50196]
[1723981721195,6.0121,144.46,144.38,65.0]
[1723981722078,6.0121,144.46,144.38,20.0]
[1723981722281,6.0121,144.46,144.36,20.0]
[1723981722972,14.94279,144.45,144.34,9.0973356]
[1723981723188,15.06828,144.45,144.34,9.0973356]
[1723981723508,6.6089,144.44,144.34,9.0973356]
[1723981723809,14.8173,144.42,144.34,9.0973356]
[1723981724290,14.8173,144.42,144.31,15.7749]
[1723981725070,14.8173,144.42,144.32,45.37647]
[1723981725274,14.8173,144.42,144.33,20.0]
[1723981725499,14.8173,144.42,144.34,45.0]
[1723981725706,14.8173,144.42,144.35,20.0]
[1723981726407,14.8173,144.42,144.36,45.0]
[1723981728296,14.8173,144.42,144.35,20.0]
[1723981728480,14.8173,144.42,144.33,0.12549]
[1723981728682,14.8173,144.42,144.33,45.25098]
[1723981728891,14.8173,144.42,144.34,20.12549]
[1723981729077,14.8173,144.42,144.35,45.0]
[1723981736827,6.462,144.4,144.34,20.0]
[1723981737022,6.462,144.4,144.31,15.7749]
[1723981737023,6.462,144.4,144.32,20.0]
[1723981738207,6.462,144.4,144.33,45.0]
[1723981738408,6.462,144.4,144.34,20.0]
[1723981741639,6.462,144.4,144.28,2.4419251]
[1723981741640,6.462,144.4,144.31,20.0]
[1723981742606,6.462,144.4,144.32,0.12549]
[1723981742836,6.462,144.4,144.32,45.50196]
[1723981743016,6.462,144.4,144.34,0.12549]
[1723981743331,14.8173,144.42,144.34,45.50196]
[1723981743514,14.8173,144.42,144.35,20.0]
[1723981743713,6.462,144.44,144.36,45.25098]
[1723981743901,6.462,144.44,144.36,46.63580365]
[1723981744098,6.462,144.44,144.36,45.25098]
[1723981744298,6.462,144.44,144.37,0.12549]
[1723981744525,6.462,144.44,144.37,0.25098]
[1723981745032,6.462,144.44,144.36,45.25098]
[1723981745703,6.462,144.44,144.37,20.0]
[1723981745918,6.462,144.44,144.38,45.0]
[1723981746116,13.3855,144.44,144.37,20.0]
[1723981746328,6.462,144.44,144.34,0.12549]
[1723981746528,6.462,144.44,144.34,65.50196]
[1723981755709,6.462,144.44,144.34,65.25098]
[1723981755916,6.462,144.44,144.35,0.25098]
[1723981756129,6.462,144.44,144.36,0.25098]
[1723981758615,6.462,144.44,144.35,0.12549]
[1723981758823,0.12549,144.43,144.34,20.0]
[1723981759154,6.462,144.44,144.34,20.0]
[1723981760326,6.462,144.44,144.35,45.0]
[1723981760628,6.462,144.44,144.36,20.0]
[1723981763553,6.462,144.44,144.37,45.0]
[1723981765737,6.462,144.44,144.38,20.0]
[1723981765930,6.462,144.44,144.39,45.0]
[1723981768743,6.462,144.44,144.4,0.37647]
[1723981770146,6.462,144.44,144.39,45.0]
[1723981771334,6.462,144.44,144.4,20.0]
[1723981772147,6.462,144.44,144.41,1.3840578]
[1723981772352,6.462,144.44,144.4,20.0]
[1723981772739,6.462,144.44,144.41,46.38458321]
[1723981772935,6.462,144.44,144.41,45.0]
[1723981773348,7.1412111,144.48,144.42,0.12549]
[1723981773558,7.1412111,144.48,144.42,20.50196]
[1723981773783,7.1412111,144.48,144.44,0.12549]
[1723981774086,0.7505111,144.48,144.44,0.50196]
[1723981774287,0.7505111,144.48,144.43,45.0]
[1723981774990,0.7505111,144.48,144.44,0.12549]
[1723981775282,0.7505111,144.48,144.44,20.50196]
[1723981775504,0.7505111,144.48,144.45,45.0]
[1723981775653,0.7505111,144.48,144.46,0.25098]
[1723981779879,0.7505111,144.48,144.45,45.0]
[1723981780084,0.7505111,144.48,144.44,20.0]
[1723981780378,0.7505111,144.48,144.39,22.78151276]
[1723981780584,0.7505111,144.48,144.39,29.0973356]
[1723981781363,0.7505111,144.48,144.4,45.50196]
[1723981781565,0.7505111,144.48,144.42,0.12549]
[1723981781889,0.7505111,144.48,144.42,45.50196]
[1723981782189,0.7505111,144.48,144.43,20.0]
[1723981782389,0.7505111,144.48,144.44,45.0]
[1723981782690,0.7505111,144.48,144.45,20.0]
[1723981784283,0.7505111,144.48,144.44,45.0]
[1723981788487,15.5678111,144.48,144.39,9.0973356]
[1723981788671,6.4788,144.47,144.4,20.0]
[1723981790489,6.4788,144.47,144.41,45.0]
[1723981790672,6.4788,144.47,144.42,20.0]
[1723981792200,15.5678111,144.48,144.42,20.0]
[1723981792535,15.5678111,144.48,144.43,45.0]
[1723981793087,0.7505111,144.48,144.43,45.0]
[1723981793398,0.7505111,144.48,144.44,0.25098]
[1723981796387,0.7505111,144.48,144.43,45.0]
[1723981802198,0.7505111,144.48,144.44,0.12549]
[1723981802505,0.7505111,144.48,144.44,0.37647]
[1723981802690,0.7505111,144.48,144.44,20.25098]
[1723981802889,0.7505111,144.48,144.45,45.0]
[1723981805105,0.7505111,144.48,144.44,20.0]
[1723981805283,0.7505111,144.48,144.42,0.12549]
[1723981805686,0.7505111,144.48,144.43,0.12549]
[1723981805985,0.7505111,144.48,144.38,16.0054]
[1723981805986,14.8173,144.47,144.38,16.0054]
[1723981806211,6.0144,144.46,144.34,28.21804387]
[1723981806516,6.0144,144.46,144.34,25.4678356]
[1723981808088,6.0144,144.46,144.35,20.0]
[1723981808315,6.0144,144.46,144.35,29.0973356]
[1723981808915,6.0144,144.46,144.36,45.50196]
[1723981809113,6.0144,144.46,144.35,9.0973356]
[1723981809303,14.8173,144.44,144.28,259.8]
[1723981809485,20.8317,144.44,144.29,25.4678356]
[1723981809906,0.25098,144.43,144.29,25.4678356]
[1723981810217,0.12549,144.41,144.29,25.4678356]
[1723981811820,0.12549,144.41,144.31,0.12549]
[1723981812299,14.8173,144.4,144.31,20.0]
[1723981812619,14.8173,144.4,144.3,20.0]
[1723981813303,14.8173,144.4,144.3,29.0973356]
[1723981813622,14.8173,144.4,144.31,9.2228256]
[1723981813806,14.8173,144.4,144.31,9.0973356]
[1723981814003,14.8173,144.4,144.32,20.0]
[1723981815713,6.6632,144.38,144.27,0.12549]
[1723981816020,6.6632,144.38,144.27,45.50196]
[1723981816223,6.6632,144.38,144.28,9.0973356]
[1723981816407,6.6632,144.38,144.29,45.25098]
[1723981816929,6.6632,144.38,144.3,20.0]
[1723981818214,6.6632,144.38,144.31,45.0]
[1723981823705,6.6632,144.38,144.3,20.0]
[1723981823910,6.6632,144.38,144.29,20.0]
[1723981825053,6.6632,144.38,144.3,45.0]
[1723981825326,6.6632,144.38,144.31,20.0]
[1723981825628,6.6632,144.38,144.25,16.3389]
[1723981825836,6.6632,144.38,144.26,20.12549]
[1723981826552,6.6632,144.38,144.27,45.37647]
[1723981826718,6.6632,144.38,144.28,20.12549]
[1723981826919,6.6632,144.38,144.29,45.0]
[1723981827119,6.6632,144.38,144.3,20.0]
[1723981833322,14.8173,144.37,144.3,20.0]
[1723981842354,14.8173,144.37,144.31,45.12549]
[1723981842555,14.8173,144.37,144.31,45.25098]
[1723981843931,6.6632,144.38,144.32,0.12549]
[1723981844138,6.6632,144.38,144.32,21.6355921]
[1723981844341,6.6632,144.38,144.33,45.12549]
[1723981844854,6.6632,144.38,144.34,20.0]
[1723981851161,14.8173,144.41,144.34,20.0]
[1723981851455,14.8173,144.41,144.35,45.12549]
[1723981852058,6.0781,144.43,144.35,45.12549]
[1723981852740,13.32203849,144.47,144.37,16.2626]
[1723981853058,6.0781,144.47,144.38,65.0]
[1723981854660,0.12549,144.46,144.38,20.0]
[1723981854837,0.50196,144.46,144.35,0.12549]
[1723981855035,0.50196,144.46,144.35,45.25098]
[1723981855336,0.50196,144.46,144.36,20.0]
[1723981856236,0.25098,144.46,144.37,45.0]
[1723981856447,0.25098,144.46,144.38,20.0]
[1723981857866,6.0781,144.47,144.38,20.0]
[1723981858154,6.0781,144.47,144.39,45.25098]
[1723981861164,6.0781,144.47,144.39,45.0]
[1723981861336,0.12549,144.46,144.38,20.0]
[1723981861538,6.0781,144.47,144.34,20.0]
[1723981861844,0.25098,144.46,144.34,20.0]
[1723981862856,0.25098,144.46,144.33,16.2626]
[1723981862857,7.04909,144.44,144.33,16.2626]
[1723981863060,0.12549,144.44,144.33,16.2626]
[1723981863238,0.37647,144.44,144.32,9.0973356]
[1723981863444,0.37647,144.44,144.3,285.42302106]
[1723981863637,7.61790667,144.44,144.3,25.62302106]
[1723981864050,14.54120667,144.44,144.3,22.7504]
[1723981864252,7.61790667,144.44,144.3,22.7504]
[1723981864458,0.12549,144.43,144.3,22.7504]
[1723981864767,0.12549,144.42,144.31,20.0]
[1723981864972,0.25098,144.42,144.31,20.0]
[1723981865477,0.25098,144.43,144.31,20.0]
[1723981865649,0.12549,144.43,144.32,0.12549]
[1723981865843,0.25098,144.43,144.32,45.50196]
[1723981866154,0.25098,144.43,144.33,20.0]
[1723981866865,21.02089,144.42,144.33,20.0]
[1723981867162,0.12549,144.41,144.33,20.0]
[1723981867340,7.05019,144.41,144.33,20.0]
[1723981867543,0.12549,144.41,144.33,20.0]
[1723981868045,0.12549,144.4,144.33,20.0]
[1723981868258,0.12549,144.4,144.32,20.0]
[1723981868259,0.25098,144.4,144.32,20.0]
[1723981868461,0.25098,144.4,144.28,29.0973356]
[1723981868644,0.12549,144.4,144.29,0.12549]
[1723981868960,0.12549,144.4,144.3,9.0973356]
[1723981869370,0.12549,144.4,144.31,45.0]
[1723981870266,0.12549,144.4,144.32,20.0]
[1723981872775,6.502,144.39,144.32,20.0]
[1723981874858,6.502,144.39,144.33,45.25098]
[1723981875175,6.502,144.39,144.34,20.0]
[1723981876163,6.502,144.39,144.31,0.25098]
[1723981877876,6.502,144.39,144.3,0.12549]
[1723981878050,14.8173,144.38,144.29,45.25098]
[1723981878252,14.8173,144.38,144.3,45.0]
[1723981878477,14.8173,144.38,144.31,0.12549]
[1723981878846,14.8173,144.38,144.31,0.25098]
[1723981879771,6.502,144.39,144.32,10.73364186]
[1723981879983,6.502,144.39,144.33,66.63613554]
[1723981880153,6.502,144.39,144.33,75.73347114]
[1723981880655,7.24290958,144.44,144.34,6.67099]
[1723981880851,0.7505111,144.48,144.36,15.71319]
[1723981881049,0.7505111,144.48,144.38,0.12549]
[1723981881267,0.7505111,144.48,144.4,0.12549]
[1723981881454,0.7505111,144.48,144.41,9.0973356]
[1723981881771,0.7505111,144.48,144.43,0.12549]
[1723981882070,0.7505111,144.48,144.43,1.50959837]
[1723981882270,0.7505111,144.48,144.45,0.12549]
[1723981882473,0.7505111,144.48,144.45,0.25098]
[1723981882974,0.7505111,144.48,144.42,65.0]
[1723981883277,0.7505111,144.48,144.43,0.25098]
[1723981889460,0.7505111,144.48,144.42,65.0]
[1723981889671,0.7505111,144.48,144.43,0.25098]
[1723981892096,0.7505111,144.48,144.43,0.12549]
[1723981892284,0.7505111,144.48,144.43,0.25098]
[1723981894477,0.7505111,144.48,144.44,0.12549]
[1723981894682,0.7505111,144.48,144.44,0.37647]
[1723981894986,0.7505111,144.48,144.45,0.12549]
[1723981895177,0.7505111,144.48,144.46,0.12549]
[1723981895569,0.7505111,144.48,144.46,0.37647]
[1723981895882,0.7505111,144.48,144.45,0.12549]
[1723981897086,0.7505111,144.48,144.45,0.25098]
[1723981897296,0.7505111,144.48,144.44,0.12549]
[1723981897595,0.7505111,144.48,144.43,0.37647]
[1723981897785,0.7505111,144.48,144.44,0.12549]
[1723981898673,0.2505111,144.48,144.44,0.12549]
[1723981901289,0.2505111,144.48,144.43,0.37647]
[1723981902196,0.2505111,144.48,144.44,0.12549]
[1723981903993,0.2505111,144.48,144.45,0.12549]
[1723981904187,0.2505111,144.48,144.45,1.29473388]
[1723981904381,0.2505111,144.48,144.46,0.12549]
[1723981904584,0.2505111,144.48,144.47,0.12549]
[1723981904872,0.2505111,144.48,144.47,65.37647]
[1723981905286,0.2505111,144.48,144.47,65.50196]
[1723981906202,0.2505111,144.48,144.47,66.88572397]
[1723981907069,0.2505111,144.48,144.47,65.50196]
[1723981907894,0.2505111,144.48,144.47,20.12549]
[1723981908082,0.2505111,144.48,144.42,20.0]
[1723981908806,0.2505111,144.48,144.42,40.0]
[1723981908981,0.2505111,144.48,144.43,1.38368125]
[1723981909180,0.2505111,144.48,144.44,0.25098]
[1723981909396,0.2505111,144.48,144.45,0.12549]
[1723981909598,0.2505111,144.48,144.46,0.12549]
[1723981909906,0.2505111,144.48,144.46,21.7598639]
[1723981910203,0.2505111,144.48,144.47,45.25098]
[1723981910383,0.2505111,144.48,144.47,65.50196]
[1723981914407,1e-08,144.48,144.47,65.50196]
[1723981918008,1e-08,144.48,144.47,20.0]
[1723981918184,1e-08,144.48,144.46,20.0]
[1723981919025,1e-08,144.48,144.47,1.38359808]
[1723981919197,1e-08,144.48,144.47,46.63457808]
[1723981919521,1e-08,144.48,144.47,66.88517548]
[1723981919903,6.0471,144.55,144.48,0.12549]
[1723981920136,6.0471,144.55,144.48,20.50196]
[1723981920417,6.0471,144.55,144.49,45.0]
[1723981920714,6.0471,144.55,144.51,0.12549]
[1723981920918,6.0471,144.55,144.51,45.12549]
[1723981922995,6.0471,144.55,144.5,20.12549]
[1723981923202,6.0471,144.55,144.51,65.0]
[1723981923421,6.0471,144.55,144.51,45.0]
[1723981926310,6.0471,144.55,144.52,20.0]
[1723981926513,14.8173,144.57,144.52,20.0]
[1723981928496,6.6519,144.59,144.52,20.0]
[1723981928702,6.6519,144.59,144.53,45.37647]
[1723981928898,6.6519,144.59,144.54,1.50867887]
[1723981929225,14.8173,144.61,144.55,0.25098]
[1723981929399,14.8173,144.61,144.56,0.12549]
[1723981929600,7.5024111,144.63,144.56,0.12549]
[1723981929601,7.5024111,144.63,144.56,16.46137]
[1723981929926,0.8505111,144.63,144.58,0.12549]
[1723981930237,0.8505111,144.63,144.58,1.75912942]
[1723981930424,0.8505111,144.63,144.59,0.12549]
[1723981930600,0.8505111,144.63,144.59,0.37647]
[1723981931710,0.8505111,144.63,144.6,1.38248434]
[1723981931899,0.8505111,144.63,144.61,0.37647]
[1723981934130,0.8505111,144.63,144.61,0.25098]
[1723981934306,0.8505111,144.63,144.57,65.0]
[1723981934506,0.8505111,144.63,144.58,0.50196]
[1723981936122,0.8505111,144.63,144.58,1.8840648]
[1723981936513,0.8505111,144.63,144.58,10.98090483]
[1723981936702,0.8505111,144.63,144.6,0.12549]
[1723981936902,0.8505111,144.63,144.6,0.50196]
[1723981939642,0.8505111,144.63,144.61,1.38225129]
[1723981939818,0.8505111,144.63,144.62,0.50196]
[1723981940315,0.8505111,144.63,144.62,0.37647]
[1723981940515,0.8505111,144.63,144.62,3.146478]
[1723981940733,0.8505111,144.63,144.62,48.146478]